[Event "Titled Tuesday Blitz May 24 Late 2022"]
[White "Can, Melih Kaan"]
[Black "Motylev, Alexander"]
[WhiteFideId "6317383"]
[BlackFideId "4121830"]
[WhiteElo "2049"]
[BlackElo "2470"]
[Result "1-0"]
[Round "03"]
[TimeControl "180+1"]
[Date "2022.05.25"]
[WhiteClock "0:02:12"]
[BlackClock "0:02:18"]

1. e4 {[%clk 0:03:00]}  c5 {[%clk 0:02:59]} 2. Nf3 {[%clk 0:03:01]}  d6 {[%clk 0:02:59]} 3. c3 {[%clk 0:03:01]}  Nf6 {[%clk 0:02:59]} 4. h3 {[%clk 0:03:02]}  Bd7 {[%clk 0:02:57]} 5. Bd3 {[%clk 0:03:02]}  g6 {[%clk 0:02:57]} 6. Bc2 {[%clk 0:03:02]}  Bc6 {[%clk 0:02:57]} 7. Qe2 {[%clk 0:02:58]}  Bh6 {[%clk 0:02:54]} 8. O-O {[%clk 0:02:57]}  O-O {[%clk 0:02:53]} 9. d4 {[%clk 0:02:56]}  Bxc1 {[%clk 0:02:53]} 10. Rxc1 {[%clk 0:02:56]}  Nbd7 {[%clk 0:02:52]} 11. d5 {[%clk 0:02:53]}  Bxd5 {[%clk 0:02:50]} 12. exd5 {[%clk 0:02:54]}  Nxd5 {[%clk 0:02:50]} 13. Nbd2 {[%clk 0:02:52]}  Nf4 {[%clk 0:02:48]} 14. Qe3 {[%clk 0:02:41]}  Nd5 {[%clk 0:02:48]} 15. Qh6 {[%clk 0:02:39]}  f6 {[%clk 0:02:31]} 16. Bb3 {[%clk 0:02:26]}  Nb6 {[%clk 0:02:30]} 17. Nc4 {[%clk 0:02:21]}  Kh8 {[%clk 0:02:30]} 18. Nxb6 {[%clk 0:02:18]}  Nxb6 {[%clk 0:02:30]} 19. Be6 {[%clk 0:02:17]}  Qe8 {[%clk 0:02:22]} 20. Re1 {[%clk 0:02:14]}  f5 {[%clk 0:02:18]} 21. Ng5 {[%clk 0:02:12]} 1-0


[Site "https://www.chess.com"]

[Event "Titled Tuesday Blitz May 24 Late 2022"]
[White "Csonka, Balazs"]
[Black "Stojanovski, Sandi"]
[WhiteFideId "742910"]
[BlackFideId "1403249"]
[WhiteElo "2404"]
[BlackElo "2342"]
[Result "1-0"]
[Round "03"]
[TimeControl "180+1"]
[Date "2022.05.24"]
[WhiteClock "0:00:10"]
[BlackClock "0:00:07"]

1. d4 {[%clk 0:03:00]}  Nf6 {[%clk 0:03:00]} 2. c4 {[%clk 0:03:00]}  e6 {[%clk 0:03:00]} 3. Nc3 {[%clk 0:02:58]}  Bb4 {[%clk 0:02:59]} 4. e3 {[%clk 0:02:59]}  O-O {[%clk 0:02:57]} 5. Bd2 {[%clk 0:02:59]}  c5 {[%clk 0:02:54]} 6. a3 {[%clk 0:02:58]}  Bxc3 {[%clk 0:02:50]} 7. Bxc3 {[%clk 0:02:59]}  Ne4 {[%clk 0:02:50]} 8. Ne2 {[%clk 0:02:59]}  b6 {[%clk 0:02:42]} 9. d5 {[%clk 0:02:49]}  Nxc3 {[%clk 0:02:31]} 10. Nxc3 {[%clk 0:02:48]}  d6 {[%clk 0:02:17]} 11. e4 {[%clk 0:02:19]}  e5 {[%clk 0:02:16]} 12. Bd3 {[%clk 0:02:19]}  f5 {[%clk 0:01:45]} 13. exf5 {[%clk 0:02:11]}  Bxf5 {[%clk 0:01:46]} 14. O-O {[%clk 0:02:10]}  Nd7 {[%clk 0:01:44]} 15. Bxf5 {[%clk 0:01:49]}  Rxf5 {[%clk 0:01:43]} 16. Qd3 {[%clk 0:01:44]}  Rf4 {[%clk 0:01:41]} 17. Ne4 {[%clk 0:01:42]}  Qe7 {[%clk 0:01:26]} 18. g3 {[%clk 0:01:34]}  Rf7 {[%clk 0:01:25]} 19. Rae1 {[%clk 0:01:26]}  Raf8 {[%clk 0:01:18]} 20. Kg2 {[%clk 0:01:20]}  h6 {[%clk 0:01:17]} 21. b4 {[%clk 0:01:09]}  Nf6 {[%clk 0:01:16]} 22. bxc5 {[%clk 0:01:04]}  Nxe4 {[%clk 0:01:09]} 23. Qxe4 {[%clk 0:01:02]}  bxc5 {[%clk 0:01:09]} 24. Rb1 {[%clk 0:01:01]}  Qg5 {[%clk 0:01:07]} 25. h4 {[%clk 0:00:53]}  Qh5 {[%clk 0:00:57]} 26. Rb3 {[%clk 0:00:33]}  g5 {[%clk 0:00:19]} 27. hxg5 {[%clk 0:00:22]}  hxg5 {[%clk 0:00:18]} 28. g4 {[%clk 0:00:14]}  Qh4 {[%clk 0:00:16]} 29. Qg6+ {[%clk 0:00:14]}  Rg7 {[%clk 0:00:09]} 30. Qe6+ {[%clk 0:00:13]}  Rff7 {[%clk 0:00:07]} 31. Rh3 {[%clk 0:00:10]} 1-0


[Site "https://www.chess.com"]

[Event "Titled Tuesday Blitz May 24 Late 2022"]
[White "Demchenko, Anton"]
[Black "Nazaretyan, Tigran"]
[WhiteFideId "4160258"]
[BlackFideId "24162345"]
[WhiteElo "2539"]
[BlackElo "2225"]
[Result "1-0"]
[Round "03"]
[TimeControl "180+1"]
[Date "2022.05.24"]
[WhiteClock "0:00:08"]
[BlackClock "0:00:08"]

1. e4 {[%clk 0:03:00]}  c5 {[%clk 0:02:57]} 2. Nf3 {[%clk 0:03:01]}  Nc6 {[%clk 0:02:56]} 3. Bb5 {[%clk 0:03:00]}  g6 {[%clk 0:02:54]} 4. O-O {[%clk 0:03:00]}  Bg7 {[%clk 0:02:54]} 5. d3 {[%clk 0:03:00]}  Nf6 {[%clk 0:02:52]} 6. Nc3 {[%clk 0:03:00]}  O-O {[%clk 0:02:51]} 7. e5 {[%clk 0:03:00]}  Ne8 {[%clk 0:02:48]} 8. Bxc6 {[%clk 0:03:00]}  dxc6 {[%clk 0:02:48]} 9. h3 {[%clk 0:03:01]}  Nc7 {[%clk 0:02:41]} 10. Ne4 {[%clk 0:03:01]}  Ne6 {[%clk 0:02:40]} 11. b3 {[%clk 0:03:01]}  b6 {[%clk 0:02:39]} 12. a4 {[%clk 0:03:01]}  a5 {[%clk 0:02:39]} 13. Bb2 {[%clk 0:03:01]}  Nd4 {[%clk 0:02:36]} 14. Bxd4 {[%clk 0:03:01]}  cxd4 {[%clk 0:02:36]} 15. Re1 {[%clk 0:03:00]}  c5 {[%clk 0:02:33]} 16. Ned2 {[%clk 0:02:54]}  Bb7 {[%clk 0:02:30]} 17. Nc4 {[%clk 0:02:51]}  Bd5 {[%clk 0:02:29]} 18. Nfd2 {[%clk 0:02:49]}  f6 {[%clk 0:02:18]} 19. Qg4 {[%clk 0:02:29]}  f5 {[%clk 0:02:16]} 20. Qg5 {[%clk 0:02:21]}  Qc7 {[%clk 0:02:09]} 21. f4 {[%clk 0:02:12]}  Qc6 {[%clk 0:01:53]} 22. Re2 {[%clk 0:02:06]}  Rae8 {[%clk 0:01:44]} 23. Qg3 {[%clk 0:01:53]}  Kf7 {[%clk 0:01:35]} 24. Rae1 {[%clk 0:01:40]}  Ke6 {[%clk 0:01:34]} 25. Qh4 {[%clk 0:01:20]}  Rh8 {[%clk 0:01:32]} 26. g4 {[%clk 0:01:05]}  Kd7 {[%clk 0:01:19]} 27. Kh2 {[%clk 0:00:53]}  fxg4 {[%clk 0:01:13]} 28. hxg4 {[%clk 0:00:51]}  h5 {[%clk 0:01:11]} 29. e6+ {[%clk 0:00:49]}  Kc7 {[%clk 0:01:07]} 30. g5 {[%clk 0:00:49]}  Rhf8 {[%clk 0:01:03]} 31. Kg3 {[%clk 0:00:42]}  Rf5 {[%clk 0:01:02]} 32. Ne5 {[%clk 0:00:29]}  Qxe6 {[%clk 0:00:53]} 33. Ndc4 {[%clk 0:00:15]}  Bb7 {[%clk 0:00:35]} 34. Qh3 {[%clk 0:00:10]}  Qd5 {[%clk 0:00:34]} 35. Nxg6 {[%clk 0:00:06]}  Qf3+ {[%clk 0:00:19]} 36. Kh2 {[%clk 0:00:06]}  Rxf4 {[%clk 0:00:11]} 37. Qxf3 {[%clk 0:00:06]}  Rxf3 {[%clk 0:00:12]} 38. Rxe7+ {[%clk 0:00:07]}  Rxe7 {[%clk 0:00:10]} 39. Rxe7+ {[%clk 0:00:07]}  Kb8 {[%clk 0:00:10]} 40. Rxg7 {[%clk 0:00:08]}  Rf2+ {[%clk 0:00:10]} 41. Kg3 {[%clk 0:00:09]}  Rxc2 {[%clk 0:00:11]} 42. Rg8+ {[%clk 0:00:08]}  Ka7 {[%clk 0:00:11]} 43. Rg7 {[%clk 0:00:08]}  Rc3 {[%clk 0:00:11]} 44. Nf4 {[%clk 0:00:08]}  Ka6 {[%clk 0:00:11]} 45. Nd6 {[%clk 0:00:08]}  Bc6 {[%clk 0:00:11]} 46. g6 {[%clk 0:00:08]}  Rxb3 {[%clk 0:00:11]} 47. Rh7 {[%clk 0:00:09]}  c4 {[%clk 0:00:11]} 48. g7 {[%clk 0:00:09]}  cxd3 {[%clk 0:00:12]} 49. Nxd3 {[%clk 0:00:06]}  Rxd3+ {[%clk 0:00:12]} 50. Kh4 {[%clk 0:00:07]}  Bd5 {[%clk 0:00:12]} 51. Nc8 {[%clk 0:00:06]}  b5 {[%clk 0:00:11]} 52. g8=Q {[%clk 0:00:05]}  bxa4 {[%clk 0:00:06]} 53. Ra7+ {[%clk 0:00:05]}  Kb5 {[%clk 0:00:05]} 54. Qxd5+ {[%clk 0:00:06]}  Kb4 {[%clk 0:00:06]} 55. Rb7+ {[%clk 0:00:07]}  Kc3 {[%clk 0:00:06]} 56. Qc5+ {[%clk 0:00:07]}  Kd2 {[%clk 0:00:06]} 57. Qxa5+ {[%clk 0:00:08]}  Ke3 {[%clk 0:00:06]} 58. Re7+ {[%clk 0:00:08]}  Kf2 {[%clk 0:00:07]} 59. Qf5+ {[%clk 0:00:08]}  Kg2 {[%clk 0:00:07]} 60. Qxd3 {[%clk 0:00:08]}  a3 {[%clk 0:00:08]} 61. Re2+ {[%clk 0:00:08]}  Kf1 {[%clk 0:00:08]} 62. Qd1# {[%clk 0:00:08]} 1-0


[Site "https://www.chess.com"]

[Event "Titled Tuesday Blitz May 24 Late 2022"]
[White "Dobre, Claudiu-Cristian"]
[Black "Ohanyan, Emin"]
[WhiteFideId "1211854"]
[BlackFideId "13312022"]
[WhiteElo "2207"]
[BlackElo "1927"]
[Result "1-0"]
[Round "03"]
[TimeControl "180+1"]
[Date "2022.05.25"]
[WhiteClock "0:00:07"]
[BlackClock "0:00:12"]

1. c4 {[%clk 0:03:00]}  e5 {[%clk 0:02:59]} 2. Nc3 {[%clk 0:03:00]}  Nf6 {[%clk 0:02:59]} 3. Nf3 {[%clk 0:03:00]}  Nc6 {[%clk 0:02:59]} 4. e3 {[%clk 0:03:00]}  Bb4 {[%clk 0:02:55]} 5. Qc2 {[%clk 0:03:01]}  Bxc3 {[%clk 0:02:56]} 6. Qxc3 {[%clk 0:03:01]}  Qe7 {[%clk 0:02:56]} 7. a3 {[%clk 0:03:00]}  O-O {[%clk 0:02:55]} 8. b4 {[%clk 0:02:25]}  d5 {[%clk 0:02:19]} 9. cxd5 {[%clk 0:02:14]}  Nxd5 {[%clk 0:02:20]} 10. Qb3 {[%clk 0:02:09]}  Be6 {[%clk 0:02:04]} 11. Qc2 {[%clk 0:02:08]}  f6 {[%clk 0:01:51]} 12. Bb2 {[%clk 0:02:05]}  Rad8 {[%clk 0:01:43]} 13. Be2 {[%clk 0:01:54]}  a6 {[%clk 0:01:38]} 14. O-O {[%clk 0:01:53]}  Qf7 {[%clk 0:01:33]} 15. d4 {[%clk 0:01:48]}  exd4 {[%clk 0:01:26]} 16. Nxd4 {[%clk 0:01:46]}  Nxd4 {[%clk 0:01:25]} 17. Bxd4 {[%clk 0:01:45]}  c6 {[%clk 0:01:25]} 18. Rad1 {[%clk 0:01:30]}  Ne7 {[%clk 0:01:23]} 19. Bb6 {[%clk 0:01:17]}  Bb3 {[%clk 0:01:18]} 20. Qc1 {[%clk 0:00:53]}  Bxd1 {[%clk 0:01:16]} 21. Bc4 {[%clk 0:00:53]}  Nd5 {[%clk 0:00:45]} 22. Bxd8 {[%clk 0:00:51]}  Be2 {[%clk 0:00:38]} 23. Bxe2 {[%clk 0:00:47]}  Rxd8 {[%clk 0:00:38]} 24. Bc4 {[%clk 0:00:47]}  Qe7 {[%clk 0:00:31]} 25. Rd1 {[%clk 0:00:43]}  Kf8 {[%clk 0:00:27]} 26. Qc2 {[%clk 0:00:39]}  g6 {[%clk 0:00:24]} 27. Qd3 {[%clk 0:00:36]}  Ke8 {[%clk 0:00:23]} 28. e4 {[%clk 0:00:34]}  Nc3 {[%clk 0:00:07]} 29. Qxd8+ {[%clk 0:00:08]}  Qxd8 {[%clk 0:00:07]} 30. Bf7+ {[%clk 0:00:08]}  Ke7 {[%clk 0:00:06]} 31. Rxd8 {[%clk 0:00:09]}  Kxd8 {[%clk 0:00:06]} 32. Bg8 {[%clk 0:00:09]}  Ke7 {[%clk 0:00:06]} 33. f3 {[%clk 0:00:08]}  Nb5 {[%clk 0:00:02]} 34. a4 {[%clk 0:00:07]}  Nc3 {[%clk 0:00:03]} 35. a5 {[%clk 0:00:07]}  Kf8 {[%clk 0:00:04]} 36. Bc4 {[%clk 0:00:04]}  Na4 {[%clk 0:00:02]} 37. Kf2 {[%clk 0:00:03]}  c5 {[%clk 0:00:02]} 38. b5 {[%clk 0:00:03]}  axb5 {[%clk 0:00:02]} 39. Bxb5 {[%clk 0:00:03]}  Nc3 {[%clk 0:00:02]} 40. Bc4 {[%clk 0:00:03]}  Ke7 {[%clk 0:00:03]} 41. Ke3 {[%clk 0:00:03]}  Nd1+ {[%clk 0:00:01]} 42. Kd2 {[%clk 0:00:03]}  Nb2 {[%clk 0:00:02]} 43. Bd5 {[%clk 0:00:03]}  Na4 {[%clk 0:00:02]} 44. Bxb7 {[%clk 0:00:03]}  c4 {[%clk 0:00:02]} 45. a6 {[%clk 0:00:03]}  Kd6 {[%clk 0:00:03]} 46. a7 {[%clk 0:00:03]}  Nb6 {[%clk 0:00:03]} 47. a8=Q {[%clk 0:00:02]}  Nxa8 {[%clk 0:00:04]} 48. Bxa8 {[%clk 0:00:03]}  Ke5 {[%clk 0:00:05]} 49. Bd5 {[%clk 0:00:03]}  Kd4 {[%clk 0:00:05]} 50. Kc2 {[%clk 0:00:04]}  c3 {[%clk 0:00:05]} 51. h4 {[%clk 0:00:04]}  h5 {[%clk 0:00:04]} 52. g4 {[%clk 0:00:04]}  Ke3 {[%clk 0:00:04]} 53. gxh5 {[%clk 0:00:04]}  gxh5 {[%clk 0:00:05]} 54. Kxc3 {[%clk 0:00:04]}  Kf4 {[%clk 0:00:06]} 55. Kd3 {[%clk 0:00:04]}  Kg3 {[%clk 0:00:06]} 56. Ke3 {[%clk 0:00:04]}  Kxh4 {[%clk 0:00:07]} 57. Kf2 {[%clk 0:00:05]}  Kg5 {[%clk 0:00:07]} 58. Kg3 {[%clk 0:00:05]}  h4+ {[%clk 0:00:08]} 59. Kg2 {[%clk 0:00:05]}  Kf4 {[%clk 0:00:08]} 60. Kh3 {[%clk 0:00:05]}  Kxf3 {[%clk 0:00:09]} 61. e5+ {[%clk 0:00:06]}  Kf4 {[%clk 0:00:09]} 62. exf6 {[%clk 0:00:06]}  Ke5 {[%clk 0:00:10]} 63. f7 {[%clk 0:00:07]}  Kxd5 {[%clk 0:00:11]} 64. f8=Q {[%clk 0:00:07]}  Ke6 {[%clk 0:00:12]} 65. Qg7 {[%clk 0:00:07]} 1-0


[Site "https://www.chess.com"]

[Event "Titled Tuesday Blitz May 24 Late 2022"]
[White "Dreev, Aleksey"]
[Black "Larino Nieto, David"]
[WhiteFideId "4100107"]
[BlackFideId "2256444"]
[WhiteElo "2625"]
[BlackElo "2532"]
[Result "1-0"]
[Round "03"]
[TimeControl "180+1"]
[Date "2022.05.24"]
[WhiteClock "0:00:23"]
[BlackClock "0:00:11"]

1. d4 {[%clk 0:03:00]}  e6 {[%clk 0:02:59]} 2. c4 {[%clk 0:03:00]}  b6 {[%clk 0:02:59]} 3. e4 {[%clk 0:02:59]}  Bb7 {[%clk 0:02:59]} 4. Nd2 {[%clk 0:02:58]}  Ne7 {[%clk 0:02:57]} 5. Bd3 {[%clk 0:02:58]}  d5 {[%clk 0:02:56]} 6. cxd5 {[%clk 0:02:57]}  exd5 {[%clk 0:02:57]} 7. e5 {[%clk 0:02:57]}  c5 {[%clk 0:02:55]} 8. Ne2 {[%clk 0:02:57]}  Nbc6 {[%clk 0:02:55]} 9. O-O {[%clk 0:02:53]}  Qd7 {[%clk 0:02:51]} 10. b3 {[%clk 0:02:50]}  Nf5 {[%clk 0:02:44]} 11. Nf3 {[%clk 0:02:48]}  Be7 {[%clk 0:02:42]} 12. Bb2 {[%clk 0:02:31]}  h6 {[%clk 0:02:40]} 13. Rc1 {[%clk 0:02:28]}  O-O {[%clk 0:02:37]} 14. Qc2 {[%clk 0:02:28]}  Nfxd4 {[%clk 0:02:25]} 15. Nexd4 {[%clk 0:02:22]}  Nxd4 {[%clk 0:02:24]} 16. Nxd4 {[%clk 0:02:15]}  cxd4 {[%clk 0:02:25]} 17. Bxd4 {[%clk 0:02:15]}  Rfc8 {[%clk 0:02:22]} 18. Qe2 {[%clk 0:02:11]}  Rxc1 {[%clk 0:02:18]} 19. Rxc1 {[%clk 0:02:10]}  Rc8 {[%clk 0:02:18]} 20. Rd1 {[%clk 0:02:10]}  Bc5 {[%clk 0:02:16]} 21. Bb2 {[%clk 0:01:13]}  Qe7 {[%clk 0:01:59]} 22. Qg4 {[%clk 0:01:09]}  Rf8 {[%clk 0:01:27]} 23. h3 {[%clk 0:01:06]}  Bc8 {[%clk 0:01:25]} 24. Qf3 {[%clk 0:01:04]}  Be6 {[%clk 0:01:25]} 25. Bc1 {[%clk 0:00:45]}  Rc8 {[%clk 0:01:20]} 26. Qg3 {[%clk 0:00:44]}  Kf8 {[%clk 0:01:16]} 27. Kh2 {[%clk 0:00:44]}  Qc7 {[%clk 0:01:06]} 28. f4 {[%clk 0:00:42]}  Qd7 {[%clk 0:00:51]} 29. Qf3 {[%clk 0:00:42]}  g6 {[%clk 0:00:30]} 30. f5 {[%clk 0:00:41]}  gxf5 {[%clk 0:00:30]} 31. Bxh6+ {[%clk 0:00:40]}  Ke8 {[%clk 0:00:30]} 32. a4 {[%clk 0:00:34]}  Kd8 {[%clk 0:00:28]} 33. Ba6 {[%clk 0:00:29]}  Rb8 {[%clk 0:00:18]} 34. Rc1 {[%clk 0:00:28]}  Qc7 {[%clk 0:00:15]} 35. Qg3 {[%clk 0:00:26]}  Qd7 {[%clk 0:00:13]} 36. b4 {[%clk 0:00:24]}  Bxb4 {[%clk 0:00:11]} 37. Bb5 {[%clk 0:00:23]} 1-0


[Site "https://www.chess.com"]

[Event "Titled Tuesday Blitz May 24 Late 2022"]
[White "Dudzinski, Pawel"]
[Black "Kohler, Aran"]
[WhiteFideId "1117890"]
[BlackFideId "1002856"]
[WhiteElo "2011"]
[BlackElo "2238"]
[Result "0-1"]
[Round "03"]
[TimeControl "180+1"]
[Date "2022.05.25"]
[WhiteClock "0:00:02"]
[BlackClock "0:00:41"]

1. e4 {[%clk 0:02:55]}  c6 {[%clk 0:02:58]} 2. d4 {[%clk 0:02:38]}  d5 {[%clk 0:02:58]} 3. exd5 {[%clk 0:02:35]}  cxd5 {[%clk 0:02:58]} 4. Bd3 {[%clk 0:02:36]}  a6 {[%clk 0:02:58]} 5. h3 {[%clk 0:02:34]}  Nc6 {[%clk 0:02:58]} 6. Nf3 {[%clk 0:02:34]}  g6 {[%clk 0:02:58]} 7. c3 {[%clk 0:02:33]}  Nf6 {[%clk 0:02:59]} 8. O-O {[%clk 0:02:30]}  Bg7 {[%clk 0:02:59]} 9. Re1 {[%clk 0:02:30]}  O-O {[%clk 0:03:00]} 10. Bf4 {[%clk 0:02:30]}  Bf5 {[%clk 0:02:53]} 11. Bxf5 {[%clk 0:02:27]}  gxf5 {[%clk 0:02:53]} 12. Ne5 {[%clk 0:02:27]}  e6 {[%clk 0:02:46]} 13. Nxc6 {[%clk 0:02:23]}  bxc6 {[%clk 0:02:46]} 14. Nd2 {[%clk 0:02:24]}  Ne4 {[%clk 0:02:44]} 15. Nb3 {[%clk 0:02:21]}  a5 {[%clk 0:02:29]} 16. f3 {[%clk 0:02:21]}  a4 {[%clk 0:02:26]} 17. fxe4 {[%clk 0:02:14]}  axb3 {[%clk 0:02:26]} 18. exf5 {[%clk 0:02:15]}  bxa2 {[%clk 0:02:13]} 19. fxe6 {[%clk 0:02:15]}  fxe6 {[%clk 0:02:13]} 20. Be5 {[%clk 0:02:15]}  Bxe5 {[%clk 0:02:08]} 21. Rxe5 {[%clk 0:02:16]}  Qf6 {[%clk 0:02:07]} 22. Qg4+ {[%clk 0:02:12]}  Kh8 {[%clk 0:02:07]} 23. Kh2 {[%clk 0:02:03]}  Qf4+ {[%clk 0:01:59]} 24. Qxf4 {[%clk 0:02:01]}  Rxf4 {[%clk 0:02:00]} 25. Re2 {[%clk 0:02:02]}  c5 {[%clk 0:01:35]} 26. dxc5 {[%clk 0:01:55]}  Rc4 {[%clk 0:01:32]} 27. Rxe6 {[%clk 0:01:27]}  Rxc5 {[%clk 0:01:32]} 28. Re2 {[%clk 0:01:24]}  Rca5 {[%clk 0:01:29]} 29. b4 {[%clk 0:01:22]}  Ra3 {[%clk 0:01:28]} 30. Rd2 {[%clk 0:01:17]}  Kg7 {[%clk 0:01:28]} 31. Rxd5 {[%clk 0:01:13]}  Rxc3 {[%clk 0:01:28]} 32. Rd2 {[%clk 0:01:13]}  Rca3 {[%clk 0:01:28]} 33. Rb2 {[%clk 0:01:13]}  h5 {[%clk 0:01:20]} 34. b5 {[%clk 0:01:09]}  h4 {[%clk 0:01:18]} 35. b6 {[%clk 0:01:04]}  R3a4 {[%clk 0:01:14]} 36. b7 {[%clk 0:00:24]}  Rb8 {[%clk 0:01:14]} 37. Raxa2 {[%clk 0:00:20]}  Rxa2 {[%clk 0:01:13]} 38. Rxa2 {[%clk 0:00:21]}  Rxb7 {[%clk 0:01:14]} 39. Ra4 {[%clk 0:00:21]}  Kg6 {[%clk 0:01:07]} 40. Rxh4 {[%clk 0:00:20]}  Kg5 {[%clk 0:01:07]} 41. Rg4+ {[%clk 0:00:20]}  Kh5 {[%clk 0:01:07]} 42. Ra4 {[%clk 0:00:19]}  Rb2 {[%clk 0:01:06]} 43. Ra5+ {[%clk 0:00:17]}  Kh4 {[%clk 0:01:06]} 44. Ra4+ {[%clk 0:00:16]}  Kh5 {[%clk 0:01:06]} 45. Ra3 {[%clk 0:00:15]}  Kh4 {[%clk 0:01:04]} 46. Rc3 {[%clk 0:00:15]}  Kh5 {[%clk 0:01:03]} 47. Rc4 {[%clk 0:00:14]}  Ra2 {[%clk 0:01:02]} 48. Kg3 {[%clk 0:00:14]}  Ra3+ {[%clk 0:01:00]} 49. Kh2 {[%clk 0:00:11]}  Ra2 {[%clk 0:01:00]} 50. Rf4 {[%clk 0:00:11]}  Rb2 {[%clk 0:01:00]} 51. Kg3 {[%clk 0:00:11]}  Rb3+ {[%clk 0:00:59]} 52. Rf3 {[%clk 0:00:11]}  Rb2 {[%clk 0:00:59]} 53. Rf5+ {[%clk 0:00:11]}  Kg6 {[%clk 0:00:59]} 54. Rc5 {[%clk 0:00:11]}  Rb3+ {[%clk 0:00:56]} 55. Kh4 {[%clk 0:00:11]}  Rb4+ {[%clk 0:00:54]} 56. g4 {[%clk 0:00:11]}  Rb3 {[%clk 0:00:55]} 57. Rc6+ {[%clk 0:00:11]}  Kh7 {[%clk 0:00:55]} 58. Rc7+ {[%clk 0:00:10]}  Kg6 {[%clk 0:00:55]} 59. Rc6+ {[%clk 0:00:10]}  Kh7 {[%clk 0:00:55]} 60. Rc5 {[%clk 0:00:09]}  Kg6 {[%clk 0:00:55]} 61. Rg5+ {[%clk 0:00:10]}  Kh6 {[%clk 0:00:56]} 62. Rh5+ {[%clk 0:00:10]}  Kg6 {[%clk 0:00:56]} 63. Ra5 {[%clk 0:00:09]}  Kh6 {[%clk 0:00:56]} 64. Ra6+ {[%clk 0:00:09]}  Kg7 {[%clk 0:00:56]} 65. Kg5 {[%clk 0:00:03]}  Rxh3 {[%clk 0:00:54]} 66. Ra7+ {[%clk 0:00:04]}  Kf8 {[%clk 0:00:52]} 67. Kg6 {[%clk 0:00:02]}  Rb3 {[%clk 0:00:43]} 68. Ra8+ {[%clk 0:00:02]}  Ke7 {[%clk 0:00:43]} 69. g5 {[%clk 0:00:02]}  Rb6+ {[%clk 0:00:40]} 70. Kg7 {[%clk 0:00:02]}  Ke6 {[%clk 0:00:41]} 71. g6 {[%clk 0:00:02]}  Kf5 {[%clk 0:00:41]} 0-1


[Site "https://www.chess.com"]

[Event "Titled Tuesday Blitz May 24 Late 2022"]
[White "Gatterer, Florian"]
[Black "Moral Garcia, Serafin"]
[WhiteFideId "811688"]
[BlackFideId "2201925"]
[WhiteElo "2218"]
[BlackElo "2228"]
[Result "0-1"]
[Round "03"]
[TimeControl "180+1"]
[Date "2022.05.25"]
[WhiteClock "0:00:05"]
[BlackClock "0:01:07"]

1. f4 {[%clk 0:03:00]}  g6 {[%clk 0:02:57]} 2. Nf3 {[%clk 0:02:58]}  Bg7 {[%clk 0:02:57]} 3. g3 {[%clk 0:02:58]}  d5 {[%clk 0:02:57]} 4. Bg2 {[%clk 0:02:57]}  c5 {[%clk 0:02:58]} 5. O-O {[%clk 0:02:57]}  Nc6 {[%clk 0:02:58]} 6. d3 {[%clk 0:02:57]}  Nh6 {[%clk 0:02:55]} 7. c3 {[%clk 0:02:57]}  O-O {[%clk 0:02:55]} 8. Qc2 {[%clk 0:02:57]}  e6 {[%clk 0:02:46]} 9. e4 {[%clk 0:02:56]}  f5 {[%clk 0:02:44]} 10. e5 {[%clk 0:02:49]}  Nf7 {[%clk 0:02:44]} 11. h4 {[%clk 0:02:48]}  h6 {[%clk 0:02:42]} 12. d4 {[%clk 0:02:45]}  cxd4 {[%clk 0:02:38]} 13. cxd4 {[%clk 0:02:42]}  Bd7 {[%clk 0:02:35]} 14. Nc3 {[%clk 0:02:42]}  Rc8 {[%clk 0:02:33]} 15. Be3 {[%clk 0:02:39]}  a6 {[%clk 0:02:33]} 16. Kf2 {[%clk 0:02:14]}  b5 {[%clk 0:02:31]} 17. Qd2 {[%clk 0:02:09]}  Na5 {[%clk 0:02:29]} 18. b3 {[%clk 0:02:09]}  b4 {[%clk 0:02:29]} 19. Ne2 {[%clk 0:02:05]}  Qb6 {[%clk 0:02:27]} 20. Rfc1 {[%clk 0:02:04]}  Bb5 {[%clk 0:02:26]} 21. Rxc8 {[%clk 0:01:47]}  Rxc8 {[%clk 0:02:25]} 22. Rc1 {[%clk 0:01:47]}  Rxc1 {[%clk 0:02:24]} 23. Nxc1 {[%clk 0:01:47]}  Nc6 {[%clk 0:02:21]} 24. Bf1 {[%clk 0:01:43]}  Bxf1 {[%clk 0:02:18]} 25. Kxf1 {[%clk 0:01:43]}  a5 {[%clk 0:02:18]} 26. Nd3 {[%clk 0:01:43]}  Bf8 {[%clk 0:02:17]} 27. Kg2 {[%clk 0:01:19]}  Nfd8 {[%clk 0:02:15]} 28. Qd1 {[%clk 0:01:05]}  Na7 {[%clk 0:02:13]} 29. h5 {[%clk 0:01:04]}  gxh5 {[%clk 0:02:03]} 30. Qh1 {[%clk 0:01:03]}  Qb5 {[%clk 0:01:56]} 31. Nf2 {[%clk 0:01:02]}  Qe8 {[%clk 0:01:54]} 32. Qc1 {[%clk 0:00:51]}  Ndc6 {[%clk 0:01:47]} 33. Nd3 {[%clk 0:00:45]}  Nb5 {[%clk 0:01:45]} 34. Nc5 {[%clk 0:00:40]}  Nc3 {[%clk 0:01:44]} 35. Qc2 {[%clk 0:00:35]}  Bxc5 {[%clk 0:01:42]} 36. dxc5 {[%clk 0:00:36]}  Qg6 {[%clk 0:01:29]} 37. a3 {[%clk 0:00:30]}  Qg4 {[%clk 0:01:26]} 38. axb4 {[%clk 0:00:28]}  axb4 {[%clk 0:01:27]} 39. Qd3 {[%clk 0:00:23]}  h4 {[%clk 0:01:16]} 40. Nxh4 {[%clk 0:00:21]}  Qe2+ {[%clk 0:01:16]} 41. Qxe2 {[%clk 0:00:20]}  Nxe2 {[%clk 0:01:16]} 42. Bd2 {[%clk 0:00:19]}  Ned4 {[%clk 0:01:15]} 43. Ng6 {[%clk 0:00:13]}  Kg7 {[%clk 0:01:12]} 44. Nh4 {[%clk 0:00:11]}  Nxb3 {[%clk 0:01:12]} 45. Be1 {[%clk 0:00:11]}  Nxc5 {[%clk 0:01:12]} 46. Nf3 {[%clk 0:00:09]}  Nd3 {[%clk 0:01:11]} 47. Bd2 {[%clk 0:00:08]}  b3 {[%clk 0:01:11]} 48. Bc3 {[%clk 0:00:08]}  b2 {[%clk 0:01:11]} 49. Bxb2 {[%clk 0:00:07]}  Nxb2 {[%clk 0:01:11]} 50. g4 {[%clk 0:00:08]}  fxg4 {[%clk 0:01:09]} 51. Nd2 {[%clk 0:00:08]}  Nc4 {[%clk 0:01:09]} 52. Nb3 {[%clk 0:00:07]}  Kg6 {[%clk 0:01:06]} 53. Nc5 {[%clk 0:00:06]}  Nd4 {[%clk 0:01:06]} 54. Nd7 {[%clk 0:00:06]}  h5 {[%clk 0:01:06]} 55. Nf8+ {[%clk 0:00:05]}  Kf5 {[%clk 0:01:06]} 56. Kg3 {[%clk 0:00:06]}  Ne2+ {[%clk 0:01:06]} 57. Kh4 {[%clk 0:00:06]}  Nxf4 {[%clk 0:01:06]} 58. Nxe6 {[%clk 0:00:06]}  Nxe6 {[%clk 0:01:05]} 59. Kxh5 {[%clk 0:00:06]}  Kxe5 {[%clk 0:01:06]} 60. Kxg4 {[%clk 0:00:05]}  Ke4 {[%clk 0:01:06]} 61. Kg3 {[%clk 0:00:05]}  d4 {[%clk 0:01:06]} 62. Kf2 {[%clk 0:00:06]}  d3 {[%clk 0:01:06]} 63. Ke1 {[%clk 0:00:05]}  Ke3 {[%clk 0:01:07]} 64. Kd1 {[%clk 0:00:05]}  Nd4 {[%clk 0:01:07]} 0-1


[Site "https://www.chess.com"]